Cogmind - Beta 14 @@@ ROGUE MODE // 2024.10.24 @ 15:48:45 Player: Simyon Result: Destroyed by H-55 Commando with Assault Rifle Performance ------------- Evolutions (3) 1500 Regions Visited (5) 1000 Robots Destroyed (91) 455 Value Destroyed (2956) 2956 Prototype IDs (1) 20 Alien Tech Used (0) 0 Bonus (0) 0 TOTAL SCORE: 5931 Bonus ------- None Cogmind --------- Core Integrity 0/700 Matter 419/450 Energy 98/100 System Corruption 4% Temperature Cool (1) Movement Walking (120) Location -7/Factory Parts ------- > --- POWER (2) -------- (None) > --- PROPULSION (3) --- Carbon-fiber Leg > --- UTILITY (5) ------ Compact Matter Pod Visual Processing Unit Melee Analysis Suite Core Analyzer > --- WEAPON (3) ------- (None) > --- INVENTORY (5) ---- Huge Storage Unit Advanced Weight Redist. System Corruption Screen EM Pulse Gun Beam Cannon Peak State ------------ > --- POWER ------------ Light Deuterium Engine Improved Deuterium Engine > --- PROPULSION ------- Carbon-fiber Leg Carbon-fiber Leg Carbon-fiber Leg > --- UTILITY ---------- Large Storage Unit Compact Matter Pod Visual Processing Unit Core Analyzer System Restoration Module > --- WEAPON ----------- Gatling Laser Beam Cannon Assault Cannon > --- INVENTORY -------- Aluminum Leg Carbon-fiber Leg Carbon-fiber Leg Improved Heat Sink Huge Storage Unit Advanced Weight Redist. System Advanced Visual Processing Unit Melee Analysis Suite Force Booster Light Armor Plating Hardened Medium Armor Plating Corruption Screen EM Pulse Gun Light Assault Rifle Heavy Mace [Rating: 41] Favorites ----------- Power Light Ion Engine Engine Light Ion Engine Power Core Light Nuclear Core Propulsion Light Treads Treads Light Treads Leg Carbon-fiber Leg Utility Large Storage Unit Device Shield Generator Storage Large Storage Unit Processor Visual Processing Unit Hackware Hacking Suite Protection Hardened Medium Armor Plating Weapon Improved Assault Rifle Energy Gun Gatling Laser Energy Cannon Beam Cannon Ballistic Gun Improved Assault Rifle Ballistic Cannon Assault Cannon Impact Weapon Heavy Mace Build | -11 -10 -9 -9 -8 -7 ------- Run | Yrd Mat Mat Sto Mat Fac Slots Evolved 6 | . . 2 . 2 2 Power 1 | . . . . . 1 Propulsion 1 | . . . . 1 . Utility 3 | . . 1 . 1 1 Weapon 1 | . . 1 . . . Parts Attached 69 | 6 11 7 7 17 21 Power 8 | 1 2 . . 2 3 Engine 5 | 1 2 . . 1 1 Core 3 | . . . . 1 2 Reactor . | . . . . . . Propulsion 20 | 2 2 2 5 4 5 Treads 8 | 2 2 . 3 1 . Leg 12 | . . 2 2 3 5 Wheel . | . . . . . . Hover . | . . . . . . Flight . | . . . . . . Utility 18 | 1 3 1 . 7 6 Device 3 | . . 1 . 1 1 Storage 6 | 1 2 . . 2 1 Processor 3 | . . . . 2 1 Hackware 1 | . 1 . . . . Protection 5 | . . . . 2 3 Artifact . | . . . . . . Weapon 23 | 2 4 4 2 4 7 Energy Gun 1 | . . . . . 1 Energy Cannon 1 | . . . . . 1 Ballistic Gun 18 | 2 4 4 2 4 2 Ballistic Cannon 1 | . . . . . 1 Launcher . | . . . . . . Special Weapon . | . . . . . . Impact Weapon 2 | . . . . . 2 Slashing Weapon . | . . . . . . Piercing Weapon . | . . . . . . Special Melee Weapon . | . . . . . . Unidentified Prototypes 1 | . 1 . . . . Parts Lost 38 | . . 4 5 8 21 Power 5 | . . . . 1 4 Propulsion 11 | . . 1 2 2 6 Utility 6 | . . . 1 2 3 Weapon 16 | . . 3 2 3 8 Highest Loss Streak 10 | . . 4 3 3 10 To Critical Strikes . | . . . . . . Average Slot Usage (%) 86 | . 85 78 89 93 91 Engine 8 | . 13 11 11 1 7 Core 2 | . . . . 7 3 Treads 8 | . 17 2 7 19 . Leg 10 | . . 12 13 4 20 Device 2 | . . 4 2 5 . Storage 18 | . 24 22 22 9 15 Processor 5 | . . . . 12 16 Protection 2 | . . . . 8 5 Ballistic Gun 23 | . 26 25 32 24 10 Peak Build Rating 41 | 6 14 16 16 31 41 Average Rating 18 | 4 10 12 15 22 34 On Entrance 13 | . 6 12 16 16 31 Naked Turns . | . . . . . . Heaviest Build 56 | 13 34 38 38 42 56 Greatest Support 60 | 40 40 23 40 60 45 Greatest Overweight (x) 12 | . 8 12 3 1 2 Average Overweight (x) . | . . 1 . . . Largest Inventory Capacity 25 | 8 15 15 15 25 15 Average Capacity 14 | 7 14 15 15 15 15 Most Carried 15 | 5 14 15 15 15 15 Average Carried 12 | 2 7 12 14 12 12 Final Capacity 15 | 8 15 15 15 15 5 Final Carried 15 | 2 14 15 15 15 5 Class Distribution -------------------- 33% | Mutant 17% | Scavenger-Gunner 15% | Gunner 14% | Tank 11% | Scavenger-Skirmisher 8% | Scavenger-Mutant Dominant Class ---------------- Mutant | -10/Materials Tank | -9/Materials Gunner | -9/Storage Scavenger-Skirmisher | -8/Materials Scavenger-Gunner | -7/Factory Resources | -11 -10 -9 -9 -8 -7 ----------- Run | Yrd Mat Mat Sto Mat Fac Matter Collected 2358 | 174 340 422 418 582 422 Remotely . | . . . . . . Salvage Created 3329 | . 356 878 555 828 712 Parts 203 | . 31 56 38 38 40 Haulers Intercepted . | . . . . . . Recyclers Shooed 4 | . . 1 . 1 2 Parts Field Recycled . | . . . . . . Retrieved Matter . | . . . . . . Parts Self-Destructed . | . . . . . . Prevented . | . . . . . . Kills | -11 -10 -9 -9 -8 -7 ------- Run | Yrd Mat Mat Sto Mat Fac Combat Hostiles Destroyed 69 | . 9 17 13 15 15 Melee 2 | . . . . . 2 Guns 61 | . 9 17 13 15 7 Cannons 5 | . . . . . 5 Classes Destroyed 12 | . 4 3 1 2 2 Worker 6 | . . 2 . 3 1 Builder 1 | . . . 1 . . Tunneler 1 | . . . . . 1 Recycler 5 | . . 1 . 3 1 Operator 1 | . 1 . . . . Watcher 8 | . 2 3 1 1 1 Swarmer 13 | . 3 3 . 3 4 Grunt 35 | . 6 11 9 6 3 Sentry 10 | . . 3 4 1 2 Specialist 6 | . . . . 4 2 Hunter 3 | . . . . 1 2 Programmer 2 | . . . . . 2 Best Kill Streak 7 | . 3 7 5 5 3 Combat Bots Only 6 | . 3 6 4 3 3 Max Kills in Single Turn 2 | . 1 2 2 1 1 Gunslinging 1 | . . 1 . . . Exploded . | . . . . . . Melee 1 | . . . . . 1 Uniques/NPCs Destroyed . | . . . . . . Combat | -11 -10 -9 -9 -8 -7 -------- Run | Yrd Mat Mat Sto Mat Fac Hostile Shots Fired 616 | . 54 100 56 113 293 Missed 167 | . 8 27 11 31 90 Damage Taken 5925 | . 527 785 559 1359 2695 Core 1264 | . 112 88 99 256 709 Absorbed by Shields 87 | . . 58 29 . . Core Remaining (%) 65 | 100 55 . 53 53 . Volleys Fired 219 | . 30 58 31 60 40 Largest 3 | . 2 3 3 3 3 Hottest 184 | . 46 69 73 75 184 Shots Fired 520 | . 60 135 90 152 83 Gun 487 | . 60 135 90 152 50 Cannon 33 | . . . . . 33 Launcher . | . . . . . . Special . | . . . . . . Kinetic 504 | . 60 135 90 152 67 Thermal 16 | . . . . . 16 Explosive . | . . . . . . Electromagnetic . | . . . . . . Robot Hit Streak 21 | . 13 21 8 13 7 Robot Miss Streak 7 | . 3 4 5 7 5 Penetration Max . | . . . . . . Secondary Targets 6 | . 3 2 . 1 . Max Gunslinging Chain 1 | . 1 1 . 1 . Shots Hit Robots 362 | . 39 92 55 101 75 Core Hits 163 | . 16 37 26 48 36 Critical Kills . | . . . . . . Critical Parts Destroyed 2 | . . . . . 2 Critical Strikes 2 | . . . . . 2 Smash 2 | . . . . . 2 Melee Attacks 21 | . . . . . 21 Impact 21 | . . . . . 21 Slashing . | . . . . . . Piercing . | . . . . . . Sneak Attacks 2 | . . . . . 2 Combat Hostiles . | . . . . . . Follow-up Attacks . | . . . . . . Damage Inflicted 6343 | . 527 1365 943 1624 1884 Guns 4887 | . 527 1365 937 1518 540 Cannons 466 | . . . . . 466 Explosions 106 | . . . . 106 . Melee 871 | . . . . . 871 Ramming 13 | . . . 6 . 7 Kinetic 5113 | . 527 1365 937 1518 766 Thermal 240 | . . . . . 240 Explosive 106 | . . . . 106 . Electromagnetic . | . . . . . . Impact 871 | . . . . . 871 Slashing . | . . . . . . Piercing . | . . . . . . Highest Corruption 4 | . . . . . 4 Average Corruption 2 | . . . . . 2 Corruption Purged 2 | . . . . . 2 Corruption Blocked . | . . . . . . Effects 6 | . . . . . 6 Message Errors 3 | . . . . . 3 Matter Fused 1 | . . . . . 1 Heat Flow Errors 1 | . . . . . 1 Energy Discharges 1 | . . . . . 1 Overload Shots . | . . . . . . Overflow Damage 285 | . . . . . 285 Projectiles 5 | . . . . . 5 Explosions . | . . . . . . Melee 280 | . . . . . 280 Knockbacks 6 | . . . . . 6 Impact 4 | . . . . . 4 Kinetic 2 | . . . . . 2 Secondary . | . . . . . . Self-Inflicted Damage 180 | . . . . 180 . Shots 2 | . . . . 2 . Rammed . | . . . . . . Targets Rammed 5 | . . . 3 . 2 Kicked 5 | . . . 3 . 2 Crushed . | . . . . . . Highest Temperature 414 | . 12 40 18 132 414 Average Temperature 55 | . 6 15 7 24 111 Received Heat Transfer 1215 | . 240 290 247 225 213 Effects 4 | . . . . . 4 Shutdowns 2 | . . . . . 2 Interference 2 | . . . . . 2 Siege Activations . | . . . . . . Robots Corrupted 1 | . . . . . 1 Combat Hostiles 1 | . . . . . 1 Parts Fried 4 | . . . . . 4 Impact Corruptions 10 | . . . . . 10 Robots Melted . | . . . . . . Combat Hostiles . | . . . . . . Parts Melted . | . . . . . . Heat Transferred 536 | . . . . . 536 Parts Sabotaged . | . . . . . . Parts Stolen . | . . . . . . Parts Stripped . | . . . . . . Power Chain Reactions . | . . . . . . Alert | -11 -10 -9 -9 -8 -7 ------- Run | Yrd Mat Mat Sto Mat Fac Peak Influence 366 | . 177 220 277 366 237 Initial 144 | . . 11 24 98 144 Average 131 | . 55 81 143 247 153 Maximum Alert Level 1 | . . 1 1 1 1 Low Security (%) 75 | 100 100 95 63 28 76 Level 1 24 | . . 4 36 71 23 Level 2 . | . . . . . . Level 3 . | . . . . . . Level 4 . | . . . . . . Level 5 . | . . . . . . High Security . | . . . . . . Max Security . | . . . . . . Squads Dispatched 11 | . 1 2 3 2 3 Investigation . | . . . . . . Extermination 2 | . . . . . 2 Reinforcement 8 | . 1 2 2 2 1 Assault . | . . . . . . Garrison 1 | . . . 1 . . Intercept . | . . . . . . Searches Triggered . | . . . . . . Construction Impeded . | . . . . . . Haulers Reinforced . | . . . . . . Active Scanning Responses . | . . . . . . Cargo Convoy Interrupts 1 | . . . . . 1 Stealth | -11 -10 -9 -9 -8 -7 --------- Run | Yrd Mat Mat Sto Mat Fac Distress Signals 7 | . . 2 1 4 . Communications Jammed . | . . . . . . Distress Signals . | . . . . . . Times Spotted 115 | . 14 22 18 30 31 Peak Tracking Total 8 | . 4 6 3 5 8 Tactical Retreats 7 | . 1 . 1 3 2 Traps | -11 -10 -9 -9 -8 -7 ------- Run | Yrd Mat Mat Sto Mat Fac Traps Triggered 4 | . 3 . . 1 . Indirectly . | . . . . . . Trap Hack Attempts . | . . . . . . Triggered . | . . . . . . Disarmed . | . . . . . . Reprogrammed . | . . . . . . Reused . | . . . . . . Traps Extracted . | . . . . . . Installed . | . . . . . . Triggered 1 | . . . . . 1 Machines | -11 -10 -9 -9 -8 -7 ---------- Run | Yrd Mat Mat Sto Mat Fac Machines Disabled 3 | . . . . 3 . Max in Single Turn 3 | . . . . 3 . Garrison Access 1 | . . . 1 . . Machines Repaired . | . . . . . . Machines Dismantled . | . . . . . . Machines Sabotaged . | . . . . . . Overloaded Fab Kills . | . . . . . . Hacking | -11 -10 -9 -9 -8 -7 --------- Run | Yrd Mat Mat Sto Mat Fac Machines Accessed 1 | . . . 1 . . Terminals . | . . . . . . Fabricators . | . . . . . . Repair Stations . | . . . . . . Recycling Units . | . . . . . . Scanalyzers . | . . . . . . Garrison Access 1 | . . . 1 . . Total Hacks 3 | . . . 3 . . Successful 1 | . . . 1 . . Failed 2 | . . . 2 . . Catastrophic . | . . . . . . Database Lockouts . | . . . . . . Manual . | . . . . . . Terminals . | . . . . . . Fabricators . | . . . . . . Repair Stations . | . . . . . . Recycling Units . | . . . . . . Scanalyzers . | . . . . . . Garrison Access 3 | . . . 3 . . Terminal Hacks . | . . . . . . Fabricator Hacks . | . . . . . . Repair Station Hacks . | . . . . . . Recycling Unit Hacks . | . . . . . . Scanalyzer . | . . . . . . Garrison Access Hacks 1 | . . . 1 . . Seal Access 1 | . . . 1 . . Unauthorized Hacks . | . . . . . . Terminals . | . . . . . . Fabricators . | . . . . . . Repair Stations . | . . . . . . Recycling Units . | . . . . . . Scanalyzers . | . . . . . . Garrison Access . | . . . . . . Data Cores Recovered . | . . . . . . Used . | . . . . . . Hacking Detections 1 | . . . 1 . . Full Trace Events . | . . . . . . Feedback Events . | . . . . . . Feedback Blocked . | . . . . . . Robot Schematics Acquired . | . . . . . . Robots Built . | . . . . . . Authchips . | . . . . . . Time . | . . . . . . Total Robot Build Rating . | . . . . . . Part Schematics Acquired . | . . . . . . Parts Built . | . . . . . . Authchips . | . . . . . . Time . | . . . . . . Total Part Build Rating . | . . . . . . Parts Repaired . | . . . . . . Time . | . . . . . . Parts Recycled . | . . . . . . Recycled Matter . | . . . . . . Retrieved Matter . | . . . . . . Retrieved Components . | . . . . . . Parts Scanalyzed . | . . . . . . Part Schematics Acquired . | . . . . . . Parts Damaged . | . . . . . . Bothacking | -11 -10 -9 -9 -8 -7 ------------ Run | Yrd Mat Mat Sto Mat Fac Used RIF Installer . | . . . . . . Robots Hacked . | . . . . . . Non-combat . | . . . . . . Combat . | . . . . . . Robot Hacks Applied . | . . . . . . Relay Couplers Released 4 | . . . . . 4 Programmers 4 | . . . . . 4 Fabnet Peak Effective % . | . . . . . . Robots Rewired . | . . . . . . Allies Hacked . | . . . . . . Hacks Repelled . | . . . . . . Allies | -11 -10 -9 -9 -8 -7 -------- Run | Yrd Mat Mat Sto Mat Fac Total Allies . | . . . . . . Largest Group . | . . . . . . Highest-Rated Group . | . . . . . . Highest-Rated Ally . | . . . . . . Total Orders . | . . . . . . Ally Attacks . | . . . . . . Total Damage . | . . . . . . Kills . | . . . . . . Allies Corrupted . | . . . . . . Allies Melted . | . . . . . . Intel | -11 -10 -9 -9 -8 -7 ------- Run | Yrd Mat Mat Sto Mat Fac Robot Analysis Total . | . . . . . . Derelict Logs Recovered . | . . . . . . Drone Launches . | . . . . . . Drone Recoveries . | . . . . . . Exploration | -11 -10 -9 -9 -8 -7 ------------- Run | Yrd Mat Mat Sto Mat Fac Turns Passed 5045 | 59 895 1426 616 977 1072 Spaces Moved 1907 | 37 307 516 240 374 433 Core 24 | 12 3 9 . . . Treads 861 | 25 304 103 109 320 . Legs 1022 | . . 404 131 54 433 Wheels . | . . . . . . Hover . | . . . . . . Flight . | . . . . . . Fastest Speed 50 | 50 160 190 160 160 120 Average Speed 194 | 124 216 224 178 165 181 Slowest Speed 650 | 160 450 650 330 240 260 Overloaded Moves . | . . . . . . Propulsion Burnouts . | . . . . . . Robots Hopped . | . . . . . . Cave-ins Triggered . | . . . . . . Exploration Rate (%) 35 | 4 59 44 52 39 12 Regions Visited 5 Branch Regions 1 Pre-discovered Areas . | . . . . . . Known Exits Taken . | . . . . . . Unknown Exits Taken 5 | 1 1 1 1 1 . Scrap Searched . | . . . . . . Spaces Dug . | . . . . . . Terrain Destroyed 42 | . . . . 42 . Melee . | . . . . . . Projectile . | . . . . . . AOE 42 | . . . . 42 . Terrain Rammed . | . . . . . . Walls Destroyed . | . . . . . . Machines Disabled . | . . . . . . Actions | -11 -10 -9 -9 -8 -7 --------- Run | Yrd Mat Mat Sto Mat Fac Total 2786 | 50 481 670 358 617 610 Wait 483 | . 109 76 69 148 81 Move 1902 | 36 306 515 239 373 433 Hop . | . . . . . . Pick Up 71 | 8 21 11 6 15 10 Fast Attach . | . . . . . . Attach 56 | 6 9 7 5 13 16 Detach 4 | . 2 . 1 . 1 Swap 13 | . 2 . 2 4 5 Drop 12 | . 2 3 2 4 1 Fire 219 | . 30 58 31 60 40 Melee 21 | . . . . . 21 Ram . | . . . . . . Kick 5 | . . . 3 . 2 Crush . | . . . . . . Escape Stasis . | . . . . . . Rewire . | . . . . . . Trap . | . . . . . . Miscellaneous . | . . . . . . Route ------- -11/Scrapyard -10/Materials (discovered 2 exits: [*Mat x2]) -9/Materials (discovered 3 exits: [*Mat] / [*Min] / *Sto) -9/Storage -8/Materials -7/Factory History --------- Turn | Location | Event 11 | -11/Scrapyard | Discovered new exit (range 15) 60 | -11/Scrapyard | Entered Materials 353 | -10/Materials | Build established: Mutant 386 | -10/Materials | Discovered new exit (range 12) 855 | -10/Materials | Discovered new exit (range 13) 955 | -10/Materials | Entered another Materials area 955 | -9/Materials | Evolved 2 slots: Utility x1, Weapon x1 1319 | -9/Materials | Lost 4 parts (1n3w) 1429 | -9/Materials | Discovered new exit (range 8) 1618 | -9/Materials | Discovered new exit (range 4) 1908 | -9/Materials | Discovered new exit (range 15) 2068 | -9/Materials | Build established: Tank 2381 | -9/Materials | Entered Storage 2650 | -9/Storage | Lost 3 parts (2n1w) 2778 | -9/Storage | Garrison activated, responded to threat 2826 | -9/Storage | Build established: Gunner 2976 | -9/Storage | Discovered new exit (range 11) 2997 | -9/Storage | Entered Materials 2997 | -8/Materials | Evolved 2 slots: Propulsion x1, Utility x1 3310 | -8/Materials | Build established: Scavenger-Skirmisher 3599 | -8/Materials | Lost 3 parts (2u1w) 3968 | -8/Materials | Discovered new exit (range 4) 3974 | -8/Materials | Entered Factory 3974 | -7/Factory | Evolved 2 slots: Power x1, Utility x1 4138 | -7/Factory | Build established: Scavenger-Gunner 4806 | -7/Factory | Cargo convoy interrupted 4900 | -7/Factory | Core integrity fell below 50% 4932 | -7/Factory | Core integrity fell below 20% 4968 | -7/Factory | Lost 10 parts (2p4n1u3w) 5046 | -7/Factory | Destroyed by H-55 Commando with Assault Rifle Last Messages --------------- Seismic Detector fried. T-07 Excavator destroyed. ALERT: Rogue bot located, Programmers report to Factory Zone 6O. ALERT: Hostiles spotted, dispatching reinforcements to Terminal F006. Slug penetrates Wall. Penetrated by Slug. Aluminum Leg destroyed. Slug penetrates Wall. Penetrated by Slug. Slug penetrates Wall. Hvy. Mace destroyed. System corrupted: Energy discharge (-36). Slug penetrates Wall. System corrupted: Matter fused (-7). Slug penetrates Wall. Penetrated by Slug. Lrg. Storage Unit destroyed. [Achievement: 5k Club] Map ----- +----------------------------------------------------+ | ==#[ """# #????????# #?????????????????? | | [!+%[ R"# #????????# #?????????????????? | | !#* """# #????????# #?????????????????? | | # #+######???# #?????????????????? | | ######## #???# #?????????????????? | | #??????# =! #???# #?????????????????? | | ######## !! #???##+###+###########?????????? | | # ! #???# # #?????????? | | + #???# + ! """" ??????????? | | # #???# # """" ??????????? | | ####+###???## #??" """"???????????? | | % ###### #????""""???????????? | | # # #??????"????????????? | | + / #???????????????????? | | ## T# # # #???????????????????? | | ?#### # # #???????????????????? | | ????# # + #???????????????????? | | ###?# # # ###?????????????????? | | ### ###### #?????????????????? | | + % #?????????????????? | | # ###########+######## #?????????????????? | | # # ## = !%= #?# #?????????????????? | | # # ## ["" "" #?#h #?????????????????? | | # # ## ""S"" ###m###;#######?????????????? | | # # ## """" # ! #?????????????? | | # # ## # !@ #?????????????? | | ### # =############# """ """ """ #?????????????? | | ??# # ## #???# """ """ """ #?????????????? | | ??# # ## #???# """ """ """ #?????????????? | | ??# # ?# #???# #?????????????? | | ??# ##+#### #??################?????????????? | | ??# + #??# #??????????????????? | | ??# # #??# """" #??????????????????? | | ### ####+###### """" #??????????????????? | | + """" ##############?????? | | ############### """" "# #?????? | | #?????????????# """" ""# " " " " " #?????? | | #?????????????# """" ""# " " " " " #?????? | | #?????????????# ""# " " " " " #?????? | | #?????????????# """" ""# " " " " " #?????? | | #?????????????# """" T"# " " " " " #?????? | | #?????????????# """" ""# " " " " " #?????? | | #?????????????# """" ""# " " " " " #?????? | | #?????????????# """" ""# " " " " " #?????? | | #?????????????# """" ""# " " " " " #?????? | | #?????????????# "# #?????? | | # #?????????????# # #?????? | | # #??????????########+######+###########?????? | | # ?? #?????? | | ? ?? #?????? | +----------------------------------------------------+ Best States ------------- Heat Dissipation 34 Energy Generation 25 Energy Capacity 330 Matter Stores 421 Matter Capacity 450 Sight Range 18 Robot Scan Range 14 Terrain Scan Density 10 Armor Coverage 225 Evasion (%) 55 Melee Accuracy 5 Core Analysis 6 Recoil Reduction 3 Offensive Hacking 10 Item Schematics ----------------- None Robot Schematics ------------------ None Fabricated ------------ Nothing Alien Tech Used ----------------- None Achievements -------------- 5k Club Challenges ------------ None Game ------ Seed CoolantShockClaw Manual? 0 Play Time 00:44:12 Cumulative 7.9 hours Start 2024.10.24 @ 15:03:00 End 2024.10.24 @ 15:48:45 Sessions 1 Manual Loads 0 Difficulty Rogue Special Mode None Game No. 18 Rogue 18 Adventurer 0 Explorer 0 Win Type - Total 0 Types 0/0/0/0/0/0/0/0/0 Lore% 2 Gallery% 10 Achievement% 12 Wizard Run 0 Options --------- Layout 1 ASCII 0 Keyboard 0 Movement Mouse Keybinds 0 Fullscreen 1 Font 24/Smallcaps Map View 50x35 Zoom Use 0% Tactical HUD 0 Map Filters NONE Filters NONE Steam 1 RUN: 70b6e62b-d0f7-41eb-ba67-b4e39c341d67